{"text_format":"1","workbook":"xlsx","n_sheets":4,"sheets":["ActivosDeInformación","Hoja2","DATOS","Hoja3"],"not_rendered":{"charts":6,"images":3,"macros":1,"external_links":2,"defined_names":8,"comments":2,"pivot_tables":0},"unopened":[],"bounds":{"document_bytes":16777216,"sheet_cells":100000,"rows_first":2000,"rows_last":500,"rows_between":2000,"halvings":0,"cell_chars":16384,"cell_head_chars":4096},"cells_cut":0,"cells_raw":0,"read":"whole","date_system":"1900"}

{"sheet":"ActivosDeInformación","index":0,"n_rows":8,"n_cols":33,"rows_kept":8,"cut":false,"hidden":false,"merged":[[3,0,3,4],[3,5,3,32],[0,0,2,0],[5,26,7,26],[5,27,7,27],[6,28,7,28],[6,29,7,29],[4,19,5,25],[4,26,4,32],[6,19,6,23],[5,17,5,18],[4,0,4,7],[5,7,7,7],[5,0,7,0],[5,2,7,2],[5,3,7,3],[6,5,7,5],[6,6,7,6],[5,15,6,15],[5,16,6,16],[5,1,7,1],[5,4,7,4],[5,5,5,6],[4,8,4,18],[5,9,7,9],[5,12,7,12],[5,13,7,13],[6,17,7,17],[6,18,7,18],[5,8,7,8],[6,25,7,25],[5,30,7,30],[5,31,7,31],[5,32,7,32],[5,10,7,10],[5,11,7,11],[5,14,6,14]]}
[]
[]
[]
["Proceso: GESTIÓN DE LA TECNOLOGÍA Y LA INFORMACIÓN",null,null,null,null,"Procedimiento y/o Documento: ACTIVOS DE INFORMACIÓN "]
["Identificación",null,null,null,null,null,null,null,"Descripción del activo de información",null,null,null,null,null,null,null,null,null,null,"Calificación",null,null,null,null,null,null,"Legalidad del activo de información"]
["ID","Proceso","Categoría\nde información","Nombre o título de la información","Descripción\nde la información","Tablas de Retención Documental - TRD",null,"Tipo de Origen","Fecha de generación de la información","Frecuencia de actualización","Nombre del responsable de la producción de la información (área)","Nombre del responsable de la información (área)","Idioma","Medio de conservación o soporte","Formato","Información Disponible","Información Publicada","Ubicación",null,null,null,null,null,null,null,null,"¿La información contiene datos personales?","Objeto legítimo de la excepción (ley 1712)","Fundamento de la exclusión ","Información específica con el carácter de reservada o clasificada","¿Excepción total o parcial?","Fecha de calificación","Plazo de clasificación o reserva"]
[null,null,null,null,null,"Cuenta con clasificación en TRD","Serie / SubSerie",null,null,null,null,null,null,null,null,null,null,"Física","Electrónica","Triada de la información",null,null,null,null,null,"Nivel",null,null,"Constitucional o legal","Jurídico"]
[null,null,null,null,null,null,null,null,null,null,null,null,null,null,null,null,null,null,null,"Confidencialidad ",null,"Integridad ",null,"Disponibilidad "]

{"sheet":"Hoja2","index":1,"n_rows":37,"n_cols":19,"rows_kept":37,"cut":false,"hidden":true,"merged":[]}
[]
["Categoría\nde información",null,"Nombre del responsable de la producción de la información (área)",null,"Medio de conservación y/o soporte",null,"Formato"]
["Información",null,"Oficina Asesora de Planeación",null,"Físico",null,"Texto",null,"SI","Total",null,{"$f":"TODAY()","v":"2021-07-20"},"Idioma","Medio de conservación o soporte","Disponibilidad de la información","Frecuencia de actualización","Confidencialidad",null,"Periodicidad de la copia de respaldo"]
["Intangible",null,"Oficina de Control Interno",null,"Electrónico / Digital",null,"Hoja de cálculo",null,"NO","Parcial",null,null,"Español","Electrónico - Digital","Disponible","No aplica","Pública","Alto","Un mes"]
["Servicio",null,"Oficina Asesora Jurídica",null,"Físico - Electrónico / Digital",null,"Presentación",null,"N/A","N/A",null,null,"Inglés","Físico -Electrónico - Digital","No disponible","Mensual","Clasificada","Medio","Dos meses"]
["Software",null,"Oficina de Sistemas ",null,null,null,"Documentos gráficos",null,null,null,null,null,"Otro","Físico","No publicada","Bimestral","Reservada","Bajo","Tres meses"]
["Hardware",null,"Subdirección de Administración Inmobiliaria y del Espacio Publico SAI",null,null,null,"Bases de datos",null,null,null,null,null,null,"No aplica","Publicada","Trimestral",null,null,"Cuatro meses"]
["Rol",null,"Subdirección Administrativa, Financiera y de Control Disciplinario SAF",null,null,null,"Audio",null,"Interno",null,null,null,null,null,"Ni disponible, ni publicada","Semestral",null,null,"Un año"]
["Área Segura",null,"Subdirección de Registro Inmobiliario SRI",null,null,null,"Video",null,"Externo",null,null,null,null,null,"No aplica.","Anual",null,null,"Año y medio"]
[null,null,"Dirección",null,null,null,"Animación",null,null,null,null,null,null,null,null,"Diario",null,null,"más de dos años"]
[null,null,"Oficina Asesora de Comunicaciones",null,null,null,"Comprensión",null,null,null,null,null,null,null,null,"Semanal",null,null,"Un día"]
[null,null,null,null,null,null,"Físico",null,null,null,null,null,null,null,null,"Bimensual",null,null,"Una semana"]
["Proceso",null,null,null,"Confidencialidad ","Columna1","Integridad ","Columna1","Disponibilidad ","Columna1",null,null,null,null,null,"Cuatrimestral",null,null,"Tres semanas"]
["Direccionamiento Estratégico",null,null,null,"PÚBLICA RESERVADA",3,"ALTA",3,"ALTA",3,null,null,null,null,null,"cuando se requiera",null,null,"no aplica"]
["Administración y gestión del Observatorio y la Política del Espacio Público de Bogotá",null,null,null,"PÚBLICA CLASIFICADA",2,"MEDIA",2,"MEDIA",2]
["Evaluación y Control",null,null,null,"PÚBLICA",1,"BAJA",1,"BAJA",1]
["Verificación y Mejoramiento Continuo"]
["Atención a la Ciudadanía"]
["Inventario General de Espacio Público y Bienes Fiscales",null,null,null,"Columna1","Columna2",null,"Columna1","Columna2"]
["Defensa del Patrimonio Inmobiliario Distrital",null,null,null,"PÚBLICA RESERVADA","Art. 19",null,"Ley 1712 Art. 18","a) El derecho a toda persona a la intimidad, bajo las limitaciones propias que impone la condición de servidor público, en concordancia con lo estipulado."]
["Administración del Patrimonio Inmobiliario Distrital",null,null,null,"PÚBLICA CLASIFICADA","Art. 18",null,null,"b) El derecho a toda persona a la vida, la salud o la seguridad."]
["Gestión Documental",null,null,null,"PÚBLICA","Ninguna",null,null,"c) Los secretos comerciales, industriales y profesionales, así como los estipulados en el art. 77 de la ley 1474 de 2011"]
["Gestión Jurídica",null,null,null,null,null,null,"Columna1","Columna2"]
["Gestión del Talento Humano",null,null,null,null,null,null,"Ley 1712 Art. 19","a) La defensa y seguridad nacional."]
["Gestión de Recursos",null,null,null,null,null,null,null,"b) La seguridad Pública."]
["Gestión de la Tecnología y la Información ",null,null,null,null,null,null,null,"c) Las relaciones internacionales."]
["Control Interno Disciplinario",null,null,null,null,null,null,null,"d) La prevención, investigación y persecución de los delitos y las faltas disciplinarias, mientras no se haga efectiva la medida de aseguramiento o se formule pliego de cargos, según el caso."]
[null,null,null,null,null,null,null,null,"e) El debido proceso y la igualdad de las partes en los procesos judiciales."]
[null,null,null,null,null,null,null,null,"f) La administración efectiva de la justicia."]
[null,null,null,null,null,null,null,null,"g) Los derechos de la infancia y la adolescencia."]
[null,null,null,null,null,null,null,null,"h) La estabilidad macroeconómica y financiera del país."]
[null,null,null,null,null,null,null,null,"i) la salud pública."]
[null,null,null,null,null,null,null,null,"Parágrafo. Documentos que contengan las opiniones o puntos de vista que formen parte de un proceso deliberado de los servidores públicos."]
[]
[null,null,null,null,null,null,null,"Ley 1581 Art. 5","Datos Sensibles: Aquellos que afectan la intimidad del Titular o cuyo uso indebido puede genera su discriminación, tales como aquellos que revelen el origen racial o étnico, la orientación política, las convicciones religiosas o filosóficas, la pertenencia a sidicatos, organizaciones sociales, de derechos humanos o que promuevan intereses de cualquier partido político o que garanticen los derechos y garantías de patidos políticos de oposición así como los datos relativos a la salud, a la vida sexual y los datos biométricos."]
[null,null,null,null,null,null,null,"Ley 1266 Art. 3","Dato Semiprivado: Es semiprivado el dato que no tiene naturaleza intima, reservada, ni publica y cuyo conocimiento o divulgacion puede interesar no solo a su titular sino a cierto sector o grupo de personas o a la sociedad en genreal, como el dato financier y crediticio de actividad comercial o de servicioes a que se refiere el Titulo IV de la ley 1266"]
[null,null,null,null,null,null,null,null,"Dato privado: Es el dato que por su naturaleza intima o reservada sólo es relevante para el titular."]

{"sheet":"DATOS","index":2,"n_rows":58,"n_cols":5,"rows_kept":58,"cut":false,"hidden":true,"merged":[[36,0,36,3],[41,0,41,1],[48,0,48,1],[53,0,53,1],[37,0,38,0],[37,1,38,1]]}
["DEPENDENCIA","ESTADO",2020,2021]
[null,"Ok",null,null,{"$f":"C2-D2","v":0}]
[null,"OK",null,null,0]
[null,"OK",null,null,0]
[null,"OK",null,null,0]
[null,"OK",null,null,0]
[null,"OK",null,null,0]
[null,"OK",null,null,0]
[null,"OK",null,null,0]
[null,"OK",null,null,0]
[null,"OK",null,null,0]
[null,"OK",null,null,0]
[null,"OK",null,null,0]
[null,"OK",null,null,0]
[null,"OK",null,null,0]
[null,"Ok",null,null,0]
[null,"OK",null,null,0]
[null,"OK",null,null,0]
[null,"OK",null,null,0]
[null,"Ok",null,null,0]
[null,"OK",null,null,0]
[null,"OK",null,null,0]
[null,"OK",null,null,0]
[null,"OK",null,null,0]
[null,"OK",null,null,0]
[null,"OK",null,null,0]
[null,"OK",null,null,0]
[null,"OK",null,null,0]
[null,"OK",null,null,0]
[null,"OK",null,null,0]
[null,"Ok",null,null,0]
[null,"OK",null,null,0]
[null,"Ok",null,null,0]
[null,null,{"$f":"SUM(C2:C33)","v":0},{"$f":"SUM(D2:D33)","v":0},0]
[]
[]
["DATOS PERSONALES"]
["Con Datos Personales",308,"Publicados",42]
[null,null,"Disponibles",266]
["Sin Datos Personales",729]
[null,{"$f":"SUM(B38:B40)","v":1037}]
["CATEGORÍA DE INFORMACIÓN"]
["HARDWARE",139]
["INFORMACIÓN",738]
["INTANGIBLE",9]
["SERVICIOS",26]
["SOFTWARE",125]
[null,{"$f":"SUM(B43:B47)","v":1037}]
["CONFIDENCIALIDAD DE LOS ACTIVOS"]
["PÚBLICA",529]
["PÚBLICA CLASIFICADA",256]
["PÚBLICA RESERVADA",252]
[null,{"$f":"SUM(B50:B52)","v":1037}]
["NIVEL DE CALIFICACION"]
["ALTA",417]
["MEDIA",500]
["BAJA",120]
[null,{"$f":"SUM(B55:B57)","v":1037}]

{"sheet":"Hoja3","index":3,"n_rows":0,"n_cols":0,"rows_kept":0,"cut":false,"hidden":true,"merged":[]}